Cogmind - Beta 12 @@@ ROGUE MODE // 2023.03.04 @ 15:30:32 Player: Falconhoof Result: Destroyed by G-34 Mercenary with Small Laser Performance ------------- Evolutions (0) 0 Regions Visited (1) 200 Robots Destroyed (12) 60 Value Destroyed (295) 295 Prototype IDs (2) 40 Alien Tech Used (0) 0 Bonus (0) 0 TOTAL SCORE: 595 Bonus ------- None Cogmind --------- Core Integrity 0/250 Matter 235/300 Energy 63/100 System Corruption 0% Temperature Hot (207) Movement Rolling (100) Location -10/Materials Parts ------- > --- POWER (1) -------- (None) > --- PROPULSION (2) --- Compact Wheel > --- UTILITY (2) ------ Small Storage Unit Targeting Computer > --- WEAPON (2) ------- Small Laser > --- INVENTORY (8) ---- Light Ion Engine Heavy Ion Engine ECM Suite Propulsion Shielding Field Recycling Unit (0) Peak State ------------ > --- POWER ------------ Ion Engine > --- PROPULSION ------- Wheel Compact Wheel > --- UTILITY ---------- Small Storage Unit Targeting Computer > --- WEAPON ----------- EM Shotgun Light EM Pulse Cannon > --- INVENTORY -------- Light Ion Engine Heavy Ion Engine ECM Suite Propulsion Shielding Field Recycling Unit Small Laser Mini Grenade Launcher [Rating: 10] Favorites ----------- Power Ion Engine Engine Ion Engine Propulsion Wheel Wheel Wheel Utility Small Storage Unit Device Field Recycling Unit Storage Small Storage Unit Processor Targeting Computer Weapon EM Pulse Gun Energy Gun EM Pulse Gun Energy Cannon Light EM Pulse Cannon Ballistic Gun Light Assault Rifle Launcher Grenade Launcher Build | -11 -10 ------- Run | Jun Mat Slots Evolved . | . . Power . | . . Propulsion . | . . Utility . | . . Weapon . | . . Parts Attached 20 | 8 12 Power 5 | 3 2 Engine 5 | 3 2 Core . | . . Reactor . | . . Propulsion 4 | 2 2 Treads . | . . Leg . | . . Wheel 4 | 2 2 Hover . | . . Flight . | . . Utility 3 | 1 2 Device 1 | . 1 Storage 1 | 1 . Processor 1 | . 1 Hackware . | . . Protection . | . . Artifact . | . . Weapon 8 | 2 6 Energy Gun 4 | 1 3 Energy Cannon 1 | . 1 Ballistic Gun 1 | 1 . Ballistic Cannon . | . . Launcher 2 | . 2 Special Weapon . | . . Impact Weapon . | . . Slashing Weapon . | . . Piercing Weapon . | . . Special Melee Weapon . | . . Unidentified Prototypes . | . . Parts Lost 8 | . 8 Power 1 | . 1 Propulsion 2 | . 2 Utility . | . . Weapon 5 | . 5 Highest Loss Streak 6 | . 6 To Critical Strikes . | . . Average Slot Usage (%) 89 | . 89 Engine 13 | . 13 Wheel 26 | . 26 Device 2 | . 2 Storage 14 | . 14 Processor 4 | . 4 Energy Gun 12 | . 12 Energy Cannon 3 | . 3 Launcher 9 | . 9 Naked Turns . | . . Heaviest Build 23 | 13 23 Greatest Support 26 | 20 26 Greatest Overweight (x) 4 | 4 1 Average Overweight (x) . | . . Largest Inventory Capacity 8 | 8 8 Average Capacity 7 | 6 8 Most Carried 8 | 5 8 Average Carried 4 | 2 4 Final Capacity 8 | 8 8 Final Carried 5 | 1 5 Class Distribution -------------------- 100% | Mutant Dominant Class ---------------- Mutant | -10/Materials Resources | -11 -10 ----------- Run | Jun Mat Matter Collected 325 | 153 172 Remotely . | . . Salvage Created 443 | . 443 Parts 17 | . 17 Haulers Intercepted . | . . Recyclers Shooed 2 | . 2 Parts Field Recycled 10 | . 10 Retrieved Matter 45 | . 45 Parts Self-Destructed . | . . Prevented . | . . Kills | -11 -10 ------- Run | Jun Mat Combat Hostiles Destroyed 9 | . 9 Guns 5 | . 5 AOE 4 | . 4 Classes Destroyed 4 | . 4 Recycler 2 | . 2 Watcher 1 | . 1 Swarmer 3 | . 3 Grunt 6 | . 6 Best Kill Streak 5 | . 5 Combat Bots Only 3 | . 3 Max Kills in Single Turn 2 | . 2 Gunslinging . | . . Exploded 2 | . 2 Melee . | . . Uniques/NPCs Destroyed . | . . Combat | -11 -10 -------- Run | Jun Mat Damage Taken 828 | . 828 Core 253 | . 253 Absorbed by Shields . | . . Regen/Repaired (Parts) 17 | . 17 Core Remaining (%) 100 | 100 . Volleys Fired 28 | . 28 Largest 2 | . 2 Hottest 101 | . 101 Shots Fired 34 | . 34 Gun 18 | . 18 Cannon 9 | . 9 Launcher 7 | . 7 Special . | . . Kinetic . | . . Thermal . | . . Explosive 7 | . 7 Electromagnetic 27 | . 27 Robot Hit Streak 7 | . 7 Robot Miss Streak 3 | . 3 Penetration Max . | . . Secondary Targets . | . . Shots Hit Robots 24 | . 24 Core Hits 17 | . 17 Critical Kills . | . . Critical Parts Destroyed . | . . Critical Strikes . | . . Melee Attacks . | . . Impact . | . . Slashing . | . . Piercing . | . . Sneak Attacks . | . . Combat Hostiles . | . . Follow-up Attacks . | . . Damage Inflicted 931 | . 931 Guns 191 | . 191 Cannons 165 | . 165 Explosions 575 | . 575 Melee . | . . Ramming . | . . Kinetic . | . . Thermal 63 | . 63 Explosive 512 | . 512 Electromagnetic 356 | . 356 Impact . | . . Slashing . | . . Piercing . | . . Highest Corruption . | . . Average Corruption . | . . Corruption Purged . | . . Corruption Blocked . | . . Overload Shots . | . . Overflow Damage 10 | . 10 Projectiles 10 | . 10 Explosions . | . . Melee . | . . Knockbacks . | . . Impact . | . . Kinetic . | . . Secondary . | . . Self-Inflicted Damage 99 | . 99 Shots 3 | . 3 Rammed . | . . Targets Rammed . | . . Kicked . | . . Crushed . | . . Highest Temperature 273 | . 273 Average Temperature 115 | . 115 Received Heat Transfer 309 | . 309 Effects 2 | . 2 Energy Bleed 2 | . 2 Siege Activations . | . . Robots Corrupted . | . . Combat Hostiles . | . . Parts Fried . | . . Impact Corruptions . | . . Robots Melted . | . . Combat Hostiles . | . . Parts Melted . | . . Heat Transferred 100 | . 100 Parts Sabotaged . | . . Parts Stolen . | . . Parts Stripped . | . . Power Chain Reactions 1 | . 1 Missiles Intercepted . | . . Alert | -11 -10 ------- Run | Jun Mat Peak Influence 205 | . 205 Initial . | . . Average 35 | . 38 Maximum Alert Level 1 | . 1 Low Security (%) 99 | 100 99 Level 1 . | . . Level 2 . | . . Level 3 . | . . Level 4 . | . . Level 5 . | . . High Security . | . . Max Security . | . . Squads Dispatched 4 | . 4 Investigation 1 | . 1 Extermination . | . . Reinforcement 3 | . 3 Assault . | . . Garrison . | . . Intercept . | . . Searches Triggered . | . . Construction Impeded . | . . Haulers Reinforced . | . . Active Scanning Responses . | . . Cargo Convoy Interrupts . | . . Stealth | -11 -10 --------- Run | Jun Mat Distress Signals 4 | . 4 Communications Jammed . | . . Distress Signals . | . . Times Spotted 19 | . 19 Peak Tracking Total 8 | . 8 Tactical Retreats . | . . Traps | -11 -10 ------- Run | Jun Mat Traps Triggered 1 | . 1 Indirectly . | . . Trap Hack Attempts . | . . Triggered . | . . Disarmed . | . . Reprogrammed 4 | . 4 Reused 1 | . 1 Traps Extracted . | . . Installed . | . . Triggered 1 | . 1 Machines | -11 -10 ---------- Run | Jun Mat Machines Disabled 2 | . 2 Max in Single Turn 1 | . 1 Machines Repaired . | . . Machines Sabotaged . | . . Overloaded Fab Kills . | . . Hacking | -11 -10 --------- Run | Jun Mat Machines Accessed 5 | . 5 Terminals 4 | . 4 Fabricators . | . . Repair Stations 1 | . 1 Recycling Units . | . . Scanalyzers . | . . Garrison Access . | . . Total Hacks 17 | . 17 Successful 8 | . 8 Failed 9 | . 9 Catastrophic 1 | . 1 Database Lockouts . | . . Manual . | . . Terminals 15 | . 15 Fabricators . | . . Repair Stations 2 | . 2 Recycling Units . | . . Scanalyzers . | . . Garrison Access . | . . Terminal Hacks 6 | . 6 Record 1 | . 1 Prototype ID Bank 1 | . 1 Emergency Access Points 1 | . 1 Locate Traps 1 | . 1 Reprogram Traps 1 | . 1 Zone Layout 1 | . 1 Fabricator Hacks . | . . Repair Station Hacks 2 | . 2 Scan Component 1 | . 1 Repair 1 | . 1 Recycling Unit Hacks . | . . Scanalyzer . | . . Garrison Access Hacks . | . . Unauthorized Hacks . | . . Terminals . | . . Fabricators . | . . Repair Stations . | . . Recycling Units . | . . Scanalyzers . | . . Garrison Access . | . . Data Cores Recovered . | . . Used . | . . Hacking Detections 4 | . 4 Full Trace Events . | . . Feedback Events . | . . Feedback Blocked . | . . Robot Schematics Acquired . | . . Robots Built . | . . Authchips . | . . Time . | . . Total Robot Build Rating . | . . Part Schematics Acquired . | . . Parts Built . | . . Authchips . | . . Time . | . . Total Part Build Rating . | . . Parts Repaired 1 | . 1 Time 26 | . 26 Parts Recycled . | . . Recycled Matter . | . . Retrieved Matter . | . . Retrieved Components . | . . Parts Scanalyzed . | . . Part Schematics Acquired . | . . Parts Damaged . | . . Bothacking | -11 -10 ------------ Run | Jun Mat Used RIF Installer . | . . Robots Hacked . | . . Non-combat . | . . Combat . | . . Robot Hacks Applied . | . . Relay Couplers Released . | . . Fabnet Peak Effective % . | . . Robots Rewired . | . . Allies Hacked . | . . Hacks Repelled . | . . Allies | -11 -10 -------- Run | Jun Mat Total Allies . | . . Largest Group . | . . Highest-Rated Group . | . . Highest-Rated Ally . | . . Total Orders . | . . Ally Attacks . | . . Total Damage . | . . Kills . | . . Allies Corrupted . | . . Allies Melted . | . . Intel | -11 -10 ------- Run | Jun Mat Robot Analysis Total . | . . Derelict Logs Recovered . | . . Drone Launches . | . . Drone Recoveries . | . . Exploration | -11 -10 ------------- Run | Jun Mat Turns Passed 743 | 62 681 Spaces Moved 387 | 63 324 Core 44 | 44 . Treads . | . . Legs . | . . Wheels 343 | 19 324 Hover . | . . Flight . | . . Fastest Speed 50 | 50 80 Average Speed 85 | 74 88 Slowest Speed 250 | 250 100 Overloaded Moves . | . . Propulsion Burnouts . | . . Robots Hopped . | . . Cave-ins Triggered . | . . Exploration Rate (%) 31 | 4 59 Regions Visited 1 Branch Regions . Pre-discovered Areas . | . . Known Exits Taken . | . . Unknown Exits Taken 1 | 1 . Scrap Searched . | . . Spaces Dug 8 | . 8 Terrain Destroyed 52 | . 52 Melee . | . . Projectile . | . . AOE 52 | . 52 Terrain Rammed . | . . Walls Destroyed . | . . Machines Disabled . | . . Actions | -11 -10 --------- Run | Jun Mat Total 765 | 78 687 Wait 305 | . 305 Move 386 | 62 324 Hop . | . . Pick Up 18 | 7 11 Fast Attach 4 | . 4 Attach 14 | 7 7 Detach 3 | 1 2 Swap 2 | 1 1 Drop 5 | . 5 Fire 28 | . 28 Melee . | . . Ram . | . . Kick . | . . Crush . | . . Escape Stasis . | . . Rewire . | . . Trap . | . . Miscellaneous . | . . Route ------- -11/Junkyard -10/Materials (discovered 3 exits: [*Mat x2] / [*Min]) History --------- Turn | Location | Event 13 | -11/Junkyard | Discovered new exit (range 16) 63 | -11/Junkyard | Entered Materials 307 | -10/Materials | Build established: Mutant 463 | -10/Materials | Discovered new exit (range 11) 562 | -10/Materials | Discovered new exit (range 10) 688 | -10/Materials | Repaired Com. Wheel 731 | -10/Materials | Core integrity fell below 50% 735 | -10/Materials | Core integrity fell below 20% 742 | -10/Materials | Discovered new exit (range 11) 744 | -10/Materials | Destroyed by G-34 Mercenary with Small Laser Last Messages --------------- W-16 Scout sends out distress signal. EM Shotgun destroyed. Ion Engine destroyed. Lgt. EM Pulse Cannon destroyed. Hadron Collector disabled. A-02 Transporter sends out distress signal. Overheating: Energy bleed (-11). G-47 Trooper destroyed. G-34 Mercenary destroyed. Overheating: Energy bleed (-5). K-01 Serf collects debris. Wheel destroyed. Material Compactor disabled. W-16 Scout destroyed. K-01 Serf collects debris. Sml. Laser destroyed. Mni. Grenade Launcher destroyed. K-01 Serf collects debris. EXIT=FOUND Acquired Sml. Laser. Map ----- +----------------------------------------------------+ | ?# "## ""?????# #????? | | ?# ""## ""?????###########+### #????? | | ?# ## ""??????# = # #????? | | ?# < ""## ??????# """ # #????? | | ?# | #####??????# "R" """ # #????? | | ?# ""#??????????# " " """ # #????? | | ?# "#??????????# """ + #????? | | ### ####??????????# # #????? | | # #######################+#### #????? | | + #????? | | # #????? | | ??????????? +????? | | ??????????????? ##+#### ######## #????? | | ??????????????????????# #??????# #????? | | ??????????????????????# #??????# #????? | | ??????????????????????# #??????### #????? | | ??????????????????????# g #?????????+#????? | | ??????????????????????#g #???????????????? | | ??????????# o ???????# #???????????????? | | ??????????# ####### #???????????????? | | ??????????# o #???????????????? | | ??????????+ ##??????????????? | | ??????????# mT##?????????????? | | ??????????# k #?????????????? | | ??????????# g #?????????????? | | ??????????# """" " %@ #?????????????? | | ??????????? ??"""" == #?????????? | | ???????????????""" " [ ?????? | | ????????????? a g < #????? | | ????????????? #????? | | ???????????? ####### ######????? | | ????????????????????? ##?????????? | | ????????????????????# #??????????? | | ????????????????????# ! ##??????????? | | ????????????????????# """ #???????????? | | ????????????????????#! """ #???????????? | | ????????????????????# """"" ##???????????? | | ????????????????????# ???" #????????????? | | ????????????????????# ????? #????????????? | | ????????????????????? ???????#????????????? | | ??????????????????????????????????????????? | | | | | | | | | | | | | | | | | | | +----------------------------------------------------+ Best States ------------- Heat Dissipation 25 Energy Generation 10 Energy Capacity 250 Matter Stores 300 Matter Capacity 300 Sight Range 16 Terrain Scan Density 10 Evasion (%) 50 Targeting Accuracy 5 Item Schematics ----------------- None Robot Schematics ------------------ None Fabricated ------------ Nothing Alien Tech Used ----------------- None Achievements -------------- None Challenges ------------ None Game ------ Seed CatalystKineticSplitter Manual? 0 Play Time 00:14:18 Cumulative 115.6 hours Start 2023.03.04 @ 15:15:01 End 2023.03.04 @ 15:30:32 Sessions 1 Manual Loads 0 Difficulty Rogue Special Mode None Game No. 56 Rogue 56 Adventurer 0 Explorer 0 Win Type - Total 0 Types 0/0/0/0/0/0/0/0/0 Lore% 27 Gallery% 33 Achievement% 24 Wizard Run 0 Options --------- ASCII 0 Keyboard 1 Movement Numpad Keybinds 0 Fullscreen 1 Font 18/SmallcapsGlow Map View 76x50 Tactical HUD 0 Map Filters NONE Filters NONE Steam 1 RUN: a2811dcf-896a-472a-a132-64158cfad6f9